fUSD/lending_fUSD_20241231
["ID","MTS","AMOUNT","RATE_DAILY","PERIOD"]
[347239113,1735609847333,-160.486008,0.00012329,2]
[347239114,1735609847342,-160.486008,0.00012329,2]
[347239115,1735609847351,-160.486008,0.00012329,2]
[347239116,1735609847360,-160.486008,0.00012329,2]
[347239117,1735609847370,-160.486008,0.00012329,2]
[347239118,1735609847379,-160.486008,0.00012329,2]
[347239119,1735609847388,-160.486008,0.00012329,2]
[347239120,1735609847396,-160.486008,0.00012329,2]
[347239121,1735609847405,-160.486008,0.00012329,2]
[347239122,1735609847414,-629.791836,0.00012329,2]
[347239123,1735609847423,-160.486008,0.00012329,2]
[347239124,1735609847432,-629.791836,0.00012329,2]
[347239125,1735609847441,-160.486008,0.00012329,2]
[347239126,1735609847451,-629.791836,0.00012329,2]
[347239127,1735609847460,-160.486008,0.00012329,2]
[347239128,1735609847470,-629.791836,0.00012329,2]
[347239129,1735609847479,-629.791836,0.00012329,2]
[347239130,1735609847488,-160.486008,0.00012329,2]
[347239131,1735609847498,-160.486008,0.00012329,2]
[347239132,1735609847507,-160.486008,0.00012329,2]
[347239133,1735609847516,-160.486008,0.00012329,2]
[347239134,1735609847526,-160.486007,0.00012329,2]
[347239135,1735609847535,-629.791836,0.00012329,2]
[347239136,1735609847544,-629.791836,0.00012329,2]
[347239137,1735609847553,-629.791836,0.00012329,2]
[347239138,1735609847562,-629.791836,0.00012329,2]
[347239139,1735609847571,-629.791836,0.00012329,2]
[347239140,1735609847580,-151.0,0.00012329,2]
[347239141,1735609847589,-151.0,0.00012329,2]
[347239142,1735609847598,-151.0,0.00012329,2]
[347239143,1735609847607,-151.0,0.00012329,2]
[347239144,1735609847616,-151.0,0.00012329,2]
[347239145,1735609847625,-151.0,0.00012329,2]
[347239146,1735609847634,-151.0,0.00012329,2]
[347239147,1735609847643,-151.0,0.00012329,2]
[347239148,1735609847652,-151.0,0.00012329,2]
[347239149,1735609847661,-151.0,0.00012329,2]
[347239150,1735609847670,-151.0,0.00012329,2]
[347239151,1735609847679,-151.0,0.00012329,2]
[347239152,1735609847688,-151.0,0.00012329,2]
[347239153,1735609847698,-151.0,0.00012329,2]
[347239154,1735609847707,-287.568553,0.00012329,2]
[347239155,1735609847716,-151.0,0.00012329,2]
[347239156,1735609847725,-151.0,0.00012329,2]
[347239157,1735609847734,-151.0,0.00012329,2]
[347239158,1735609847743,-151.0,0.00012329,2]
[347239159,1735609847752,-288.096984,0.00012329,2]
[347239160,1735609847761,-161.288222,0.00012329,2]
[347239161,1735609847769,-161.288222,0.00012329,2]
[347239162,1735609847779,-161.288222,0.00012329,2]
[347239163,1735609847788,-161.288222,0.00012329,2]
[347239164,1735609847799,-161.288222,0.00012329,2]
[347239165,1735609847813,-161.288222,0.00012329,2]
[347239166,1735609847822,-161.288222,0.00012329,2]
[347239167,1735609847831,-161.288222,0.00012329,2]
[347239168,1735609847841,-161.288222,0.00012329,2]
[347239169,1735609847850,-161.288222,0.00012329,2]
[347239170,1735609847859,-408.39654,0.00012329,2]
[347239171,1735609847868,-408.39654,0.00012329,2]
[347239172,1735609847877,-408.39654,0.00012329,2]
[347239173,1735609847886,-408.39654,0.00012329,2]
[347239174,1735609847895,-408.39654,0.00012329,2]
[347239175,1735609847905,-408.39654,0.00012329,2]
[347239176,1735609847914,-342.414332,0.00012329,2]
[347239177,1735609847923,-342.414332,0.00012329,2]
[347239178,1735609847932,-342.414332,0.00012329,2]
[347239179,1735609847942,-342.414332,0.00012329,2]
[347239180,1735609847951,-342.414332,0.00012329,2]
[347239181,1735609847960,-151.0,0.00012329,2]
[347239182,1735609847971,-151.0,0.00012329,2]
[347239183,1735609847980,-151.643982,0.00012329,2]
[347239184,1735609847990,-342.414332,0.00012329,2]
[347239185,1735609847999,-342.414332,0.00012329,2]
[347239186,1735609848009,-408.39654,0.00012329,2]
[347239187,1735609848018,-342.414332,0.00012329,2]
[347239188,1735609848027,-408.39654,0.00012329,2]
[347239189,1735609848036,-342.414332,0.00012329,2]
[347239190,1735609848046,-408.39654,0.00012329,2]
[347239191,1735609848055,-342.414332,0.00012329,2]
[347239192,1735609848065,-408.39654,0.00012329,2]
[347239193,1735609848075,-495.402854,0.00012329,2]
[347239194,1735609848088,-495.402854,0.00012329,2]
[347239195,1735609848097,-495.402854,0.00012329,2]
[347239196,1735609848107,-495.402854,0.00012329,2]
[347239197,1735609848116,-495.402854,0.00012329,2]
[347239198,1735609848125,-495.402854,0.00012329,2]
[347239199,1735609848134,-495.402854,0.00012329,2]
[347239200,1735609848143,-495.402854,0.00012329,2]
[347239201,1735609848152,-495.402854,0.00012329,2]
[347239202,1735609848161,-495.402854,0.00012329,2]
[347239203,1735609848171,-369.525604,0.00012329,2]
[347239204,1735609848180,-369.525604,0.00012329,2]
[347239205,1735609848189,-369.525604,0.00012329,2]
[347239206,1735609848198,-369.525604,0.00012329,2]
[347239207,1735609848207,-369.525604,0.00012329,2]
[347239208,1735609848216,-369.525604,0.00012329,2]
[347239209,1735609848226,-369.525604,0.00012329,2]
[347239210,1735609848235,-369.525604,0.00012329,2]
[347239211,1735609848244,-369.525604,0.00012329,2]
[347239212,1735609848253,-369.525604,0.00012329,2]
[347239213,1735609848262,-521.089946,0.00012329,2]
[347239214,1735609848272,-521.089946,0.00012329,2]
[347239215,1735609848281,-521.089946,0.00012329,2]
[347239216,1735609848290,-521.089946,0.00012329,2]
[347239217,1735609848299,-521.089946,0.00012329,2]
[347239218,1735609848309,-521.089946,0.00012329,2]
[347239219,1735609848320,-521.089946,0.00012329,2]
[347239220,1735609848330,-521.089946,0.00012329,2]
[347239221,1735609848340,-521.089946,0.00012329,2]
[347239222,1735609848349,-521.089946,0.00012329,2]
[347239223,1735609848359,-541.129143,0.00012329,2]
[347239224,1735609848369,-541.129143,0.00012329,2]
[347239225,1735609848378,-541.129143,0.00012329,2]
[347239226,1735609848388,-541.129143,0.00012329,2]
[347239227,1735609848397,-541.129143,0.00012329,2]
[347239228,1735609848407,-151.0,0.00012329,2]
[347239229,1735609848416,-202.489459,0.00012329,2]
[347239230,1735609848425,-541.129143,0.00012329,2]
[347239231,1735609848434,-541.129143,0.00012329,2]
[347239232,1735609848444,-541.129143,0.00012329,2]
[347239233,1735609848454,-541.129143,0.00012329,2]
[347239234,1735609848463,-541.129143,0.00012329,2]
[347239235,1735609848473,-151.0,0.00012329,2]
[347239236,1735609848482,-151.0,0.00012329,2]
[347239237,1735609848492,-151.0,0.00012329,2]
[347239238,1735609848502,-151.0,0.00012329,2]
[347239239,1735609848511,-151.0,0.00012329,2]
[347239240,1735609848520,-151.0,0.00012329,2]
[347239241,1735609848529,-153.907724,0.00012329,2]
[347239242,1735609848539,-151.0,0.00012329,2]
[347239243,1735609848548,-151.0,0.00012329,2]
[347239244,1735609848557,-601.867879,0.00012329,2]
[347239245,1735609848567,-151.0,0.00012329,2]
[347239246,1735609848576,-408.554796,0.00012329,2]
[347239247,1735609848586,-601.867879,0.00012329,2]
[347239248,1735609848595,-151.0,0.00012329,2]
[347239249,1735609848604,-408.554796,0.00012329,2]
[347239250,1735609848614,-601.867879,0.00012329,2]
[347239251,1735609848623,-151.0,0.00012329,2]
[347239252,1735609848632,-601.867879,0.00012329,2]
[347239253,1735609848641,-160.453928,0.00012329,2]
[347239254,1735609848651,-601.867879,0.00012329,2]
[347239255,1735609848659,-408.554796,0.00012329,2]
[347239256,1735609848671,-408.554796,0.00012329,2]
[347239257,1735609848680,-151.0,0.00012329,2]
[347239258,1735609848689,-408.554796,0.00012329,2]
[347239259,1735609848700,-151.0,0.00012329,2]
[347239260,1735609848709,-151.0,0.00012329,2]
[347239261,1735609848718,-151.0,0.00012329,2]
[347239262,1735609848727,-601.867879,0.00012329,2]
[347239263,1735609848736,-151.0,0.00012329,2]
[347239264,1735609848745,-601.867879,0.00012329,2]
[347239265,1735609848755,-408.554796,0.00012329,2]
[347239266,1735609848764,-601.867879,0.00012329,2]
[347239267,1735609848774,-408.554796,0.00012329,2]
[347239268,1735609848783,-601.867879,0.00012329,2]
[347239269,1735609848792,-408.554796,0.00012329,2]
[347239270,1735609848802,-601.867879,0.00012329,2]
[347239271,1735609848811,-408.554796,0.00012329,2]
[347239272,1735609848821,-408.554796,0.00012329,2]
[347239273,1735609848830,-151.0,0.00012329,2]
[347239274,1735609848840,-151.0,0.00012329,2]
[347239275,1735609848849,-151.0,0.00012329,2]
[347239276,1735609848858,-155.506494,0.00012329,2]
[347239277,1735609848867,-151.0,0.00012329,2]
[347239278,1735609848877,-151.0,0.00012329,2]
[347239279,1735609848886,-151.0,0.00012329,2]
[347239280,1735609848895,-151.0,0.00012329,2]
[347239281,1735609848904,-151.0,0.00012329,2]
[347239282,1735609848913,-162.655525,0.00012329,2]
[347239283,1735609848922,-151.0,0.00012329,2]
[347239284,1735609848931,-151.0,0.00012329,2]
[347239285,1735609848941,-215.72987,0.00012329,2]
[347239286,1735609848951,-185.399223,0.00012329,2]
[347239287,1735609848959,-185.399223,0.00012329,2]
[347239288,1735609848968,-185.399223,0.00012329,2]
[347239289,1735609848978,-185.399223,0.00012329,2]
[347239290,1735609848987,-185.399223,0.00012329,2]
[347239291,1735609848996,-185.399223,0.00012329,2]
[347239292,1735609849005,-185.399223,0.00012329,2]
[347239293,1735609849014,-185.399223,0.00012329,2]
[347239294,1735609849023,-185.399223,0.00012329,2]
[347239295,1735609849032,-185.399223,0.00012329,2]
[347239296,1735609849041,-3524.140534,0.00012329,2]
[347239297,1735609849050,-3524.140534,0.00012329,2]
[347239298,1735609849059,-3524.140534,0.00012329,2]
[347239299,1735609849070,-3524.140534,0.00012329,2]
[347239300,1735609849079,-3524.140534,0.00012329,2]
[347239301,1735609849091,-3524.140534,0.00012329,2]
[347239302,1735609849100,-3524.140534,0.00012329,2]
[347239303,1735609849109,-3524.140534,0.00012329,2]
[347239304,1735609849118,-3524.140534,0.00012329,2]
[347239305,1735609849127,-3524.140534,0.00012329,2]
[347239306,1735609849136,-2873.670013,0.00012329,2]
[347239307,1735609849145,-2873.670013,0.00012329,2]
[347239308,1735609849155,-2873.670013,0.00012329,2]
[347239309,1735609849164,-2873.670013,0.00012329,2]
[347239310,1735609849174,-2873.670013,0.00012329,2]
[347239311,1735609849183,-2873.670013,0.00012329,2]
[347239312,1735609849193,-2873.670013,0.00012329,2]
[347239313,1735609849202,-2873.670013,0.00012329,2]
[347239314,1735609849211,-2873.670013,0.00012329,2]
[347239315,1735609849219,-2873.670013,0.00012329,2]
[347239316,1735609849228,-1856.639456,0.00012329,2]
[347239317,1735609849237,-1856.639456,0.00012329,2]
[347239318,1735609849246,-1856.639456,0.00012329,2]
[347239319,1735609849255,-1856.639456,0.00012329,2]
[347239320,1735609849264,-1856.639456,0.00012329,2]
[347239321,1735609849273,-1856.639456,0.00012329,2]
[347239322,1735609849282,-1856.639456,0.00012329,2]
[347239323,1735609849291,-1856.639456,0.00012329,2]
[347239324,1735609849300,-1856.639456,0.00012329,2]
[347239325,1735609849309,-1856.639456,0.00012329,2]
[347239326,1735609849319,-5292.963674,0.00012329,2]
[347239327,1735609849328,-5292.963674,0.00012329,2]
[347239328,1735609849340,-5292.963674,0.00012329,2]
[347239329,1735609849349,-5292.963674,0.00012329,2]
[347239330,1735609849359,-5292.963674,0.00012329,2]
[347239331,1735609849368,-5292.963674,0.00012329,2]
[347239332,1735609849379,-5292.963674,0.00012329,2]
[347239333,1735609849388,-5292.963674,0.00012329,2]
[347239334,1735609849398,-5292.963674,0.00012329,2]
[347239335,1735609849408,-5292.963674,0.00012329,2]
[347239336,1735609849418,-151.0,0.00012329,2]
[347239337,1735609849428,-151.0,0.00012329,2]
[347239338,1735609849437,-151.0,0.00012329,2]
[347239339,1735609849447,-151.0,0.00012329,2]
[347239340,1735609849456,-153.810158,0.00012329,2]
[347239341,1735609849466,-151.0,0.00012329,2]
[347239342,1735609849475,-151.0,0.00012329,2]
[347239343,1735609849484,-151.0,0.00012329,2]
[347239344,1735609849493,-151.0,0.00012329,2]
[347239345,1735609849502,-153.131331,0.00012329,2]
[347239346,1735609849512,-652.661316,0.00012329,2]
[347239347,1735609849521,-652.661316,0.00012329,2]
[347239348,1735609849530,-151.0,0.00012329,2]
[347239349,1735609849540,-652.661316,0.00012329,2]
[347239350,1735609849549,-151.0,0.00012329,2]
[347239351,1735609849558,-652.661316,0.00012329,2]
[347239352,1735609849568,-151.0,0.00012329,2]
[347239353,1735609849578,-151.0,0.00012329,2]
[347239354,1735609849587,-652.661316,0.00012329,2]
[347239355,1735609849597,-151.0,0.00012329,2]
[347239356,1735609849606,-151.0,0.00012329,2]
[347239357,1735609849615,-151.0,0.00012329,2]
[347239358,1735609849624,-151.0,0.00012329,2]
[347239359,1735609849634,-151.0,0.00012329,2]
[347239360,1735609849644,-652.661316,0.00012329,2]
[347239361,1735609849654,-652.661316,0.00012329,2]
[347239362,1735609849663,-652.661316,0.00012329,2]
[347239363,1735609849672,-652.661316,0.00012329,2]
[347239364,1735609849681,-151.0,0.00012329,2]
[347239365,1735609849690,-652.661316,0.00012329,2]
[347239366,1735609849699,-151.0,0.00012329,2]
[347239367,1735609849708,-151.0,0.00012329,2]
[347239368,1735609849718,-151.0,0.00012329,2]
[347239369,1735609849727,-151.0,0.00012329,2]
[347239370,1735609849736,-305.858879,0.00012329,2]
[347239371,1735609849745,-305.858879,0.00012329,2]
[347239372,1735609849753,-305.858879,0.00012329,2]
[347239373,1735609849762,-305.858879,0.00012329,2]
[347239374,1735609849771,-305.858879,0.00012329,2]
[347239375,1735609849783,-305.858879,0.00012329,2]
[347239376,1735609849792,-305.858879,0.00012329,2]
[347239377,1735609849801,-305.858879,0.00012329,2]
[347239378,1735609849810,-305.858879,0.00012329,2]
[347239379,1735609849820,-305.858879,0.00012329,2]
[347239380,1735609849830,-151.0,0.00012329,2]
[347239381,1735609849839,-159.364995,0.00012329,2]
[347239382,1735609849848,-10000.0,0.00012329,2]
[347239383,1735609849857,-9138.02287495,0.00012329,2]
[347239384,1735609850042,-861.97712505,0.00012329,2]
[347239385,1735609850051,-400.44819439,0.00012329,2]
[347239386,1735609850062,-5462.24845647,0.00012329,2]
[347239387,1735609850078,-4137.30334914,0.00012329,2]
[347239388,1735609850092,-4803.4695909,0.00012329,2]
[347239389,1735609850104,-2895.42788783,0.00012329,2]
[347239390,1735609850115,-2008.21462683,0.00012329,2]
[347239391,1735609850126,-292.88789444,0.00012329,2]
[347239392,1735609850135,-1105.96883344,0.00012329,2]
[347239393,1735609850146,-5018.86104,0.00012329,2]
[347239394,1735609850237,-3875.17012656,0.00012329,2]
[347239395,1735609850247,-10000.0,0.00012329,2]
[347239396,1735609850256,-10000.0,0.00012329,2]
[347239397,1735609850266,-10000.0,0.00012329,2]
[347239398,1735609850275,-10000.0,0.00012329,2]
[347239399,1735609850284,-10000.0,0.00012329,2]
[347239400,1735609850293,-10000.0,0.00012329,2]
[347239401,1735609850302,-10000.0,0.00012329,2]
[347239402,1735609850312,-10000.0,0.00012329,2]
[347239403,1735609850322,-10000.0,0.00012329,2]
[347239404,1735609850332,-10000.0,0.00012329,2]
[347239405,1735609850342,-10000.0,0.00012329,2]
[347239406,1735609850351,-10000.0,0.00012329,2]
[347239407,1735609850360,-10000.0,0.00012329,2]
[347239408,1735609850370,-10000.0,0.00012329,2]
[347239409,1735609850379,-10000.0,0.00012329,2]
[347239410,1735609850389,-10000.0,0.00012329,2]
[347239411,1735609850399,-10000.0,0.00012329,2]
[347239412,1735609850408,-10000.0,0.00012329,2]
[347239413,1735609850417,-10000.0,0.00012329,2]
[347239414,1735609850427,-766.423095,0.00012329,2]
[347239415,1735609850436,-10000.0,0.00012329,2]
[347239416,1735609850446,-766.423095,0.00012329,2]
[347239417,1735609850455,-766.423095,0.00012329,2]
[347239418,1735609850465,-766.423095,0.00012329,2]
[347239419,1735609850474,-10000.0,0.00012329,2]
[347239420,1735609850484,-10000.0,0.00012329,2]
[347239421,1735609850493,-10000.0,0.00012329,2]
[347239422,1735609850503,-10000.0,0.00012329,2]
[347239423,1735609850512,-766.423095,0.00012329,2]
[347239424,1735609850521,-10000.0,0.00012329,2]
[347239425,1735609850531,-766.423095,0.00012329,2]
[347239426,1735609850540,-766.423095,0.00012329,2]
[347239427,1735609850550,-766.423095,0.00012329,2]
[347239428,1735609850562,-10000.0,0.00012329,2]
[347239429,1735609850575,-10000.0,0.00012329,2]
[347239430,1735609850585,-10000.0,0.00012329,2]
[347239431,1735609850594,-10000.0,0.00012329,2]
[347239432,1735609850604,-2857.368093,0.00012329,2]
[347239433,1735609850614,-151.0,0.00012329,2]
[347239434,1735609850623,-151.0,0.00012329,2]
[347239435,1735609850633,-924.426765,0.00012329,2]
[347239436,1735609850643,-924.426765,0.00012329,2]
[347239437,1735609850654,-924.426765,0.00012329,2]
[347239438,1735609850666,-924.426765,0.00012329,2]
[347239439,1735609850677,-329.338426,0.00012332,2]
[347239440,1735609850687,-318.979277,0.00012332,2]
[347239441,1735609850895,-318.979277,0.00012332,2]
[347239442,1735609850916,-329.338426,0.00012332,2]
[347239443,1735609850926,-323.980937,0.00012332,2]
[347239444,1735609850935,-323.980937,0.00012332,2]
[347239445,1735609850945,-4859.02433287,0.00012335,2]
[347239446,1735609850954,-151.0,0.00012336,2]
[347239447,1735609850964,-179.507218,0.00012336,2]
[347239448,1735609850973,-356.964894,0.00012337,2]
[347239449,1735609850982,-164.715915,0.00012337,2]
[347239450,1735609850991,-311.719682,0.00012337,2]
[347239451,1735609851001,-311.719673,0.00012337,2]
[347239452,1735609851010,-179.921779,0.00012347,2]
[347239453,1735609851019,-179.921779,0.00012347,2]
[347239454,1735609851028,-329.338426,0.00012347,2]
[347239455,1735609851038,-318.979277,0.00012347,2]
[347239456,1735609851047,-329.338429,0.00012347,2]
[347239457,1735609851056,-318.979269,0.00012347,2]
[347239458,1735609851065,-323.980937,0.00012347,2]
[347239459,1735609851075,-323.980934,0.00012347,2]
[347239460,1735609851086,-202.140419,0.00012347,2]
[347239461,1735609851095,-202.140417,0.00012347,2]
[347239462,1735609851104,-432.674172,0.00012347,2]
[347239463,1735609851113,-432.674172,0.00012347,2]
[347239464,1735609851122,-356.964894,0.0001235,2]
[347239465,1735609851131,-356.964894,0.0001235,2]
[347239466,1735609851140,-151.0,0.00012357,2]
[347239467,1735609851149,-356.964894,0.00012368,2]
[347239468,1735609851158,-356.964894,0.00012368,2]
[347239469,1735609851167,-151.0,0.00012368,2]
[347239470,1735609851176,-249.518704,0.00012368,2]
[347239471,1735609851185,-249.518704,0.00012368,2]
[347239472,1735609851194,-151.0,0.00012379,2]
[347239473,1735609851204,-356.964894,0.0001239,2]
[347239474,1735609851213,-356.964894,0.0001239,2]
[347239475,1735609851222,-3391.47143375,0.00012399,2]
[347239476,1735609851231,-3391.47143371,0.00012399,2]
[347239477,1735609851240,-3391.47143371,0.00012399,2]
[347239478,1735609851249,-3391.47143371,0.00012399,2]
[347239479,1735609851258,-3391.47143371,0.00012399,2]
[347239480,1735609851268,-3391.47143371,0.00012399,2]
[347239481,1735609851277,-3391.47143371,0.00012399,2]
[347239482,1735609851286,-3391.47143371,0.00012399,2]
[347239483,1735609851295,-3391.47143371,0.00012399,2]
[347239484,1735609851304,-198.31962859,0.00012399,2]
[347239485,1735609851314,-151.0,0.000124,2]
[347239486,1735609851323,-151.0,0.000124,2]
[347239487,1735609851332,-249.518704,0.000124,2]
[347239488,1735609851341,-249.518704,0.000124,2]
[347239489,1735609851350,-225.37457953,0.000124,2]
[347239490,1735609851359,-151.0,0.000124,2]
[347239491,1735609851368,-151.0,0.000124,2]
[347239492,1735609851378,-2466.349462,0.000124,2]
[347239493,1735609851387,-2466.349462,0.000124,2]
[347239494,1735609851396,-151.0,0.000124,2]
[347239495,1735609851405,-233.114644,0.000124,2]
[347239496,1735609851414,-151.0,0.000124,2]
[347239497,1735609851424,-151.0,0.000124,2]
[347239498,1735609851433,-161.288222,0.000124,2]
[347239499,1735609851442,-161.288222,0.000124,2]
[347239500,1735609851452,-408.39654,0.000124,2]
[347239501,1735609851461,-342.414332,0.000124,2]
[347239502,1735609851470,-342.414332,0.000124,2]
[347239503,1735609851480,-408.39654,0.000124,2]
[347239504,1735609851489,-586.51,0.000124,2]
[347239505,1735609851498,-521.089946,0.000124,2]
[347239506,1735609851507,-521.089946,0.000124,2]
[347239507,1735609851517,-151.0,0.000124,2]
[347239508,1735609851526,-601.867879,0.000124,2]
[347239509,1735609851536,-151.0,0.000124,2]
[347239510,1735609851545,-601.867879,0.000124,2]
[347239511,1735609851554,-151.0,0.000124,2]
[347239512,1735609851564,-3391.47143371,0.000124,2]
[347239513,1735609851573,-185.399223,0.000124,2]
[347239514,1735609851582,-185.399223,0.000124,2]
[347239515,1735609851592,-3524.140534,0.000124,2]
[347239516,1735609851601,-3524.140534,0.000124,2]
[347239517,1735609851611,-2873.670013,0.000124,2]
[347239518,1735609851620,-2873.670013,0.000124,2]
[347239519,1735609851630,-300.0,0.000124,4]
[347239520,1735609851639,-5292.963674,0.000124,2]
[347239521,1735609851648,-5292.963674,0.000124,2]
[347239522,1735609851658,-23504.99934052,0.000124,2]
[347239523,1735609851667,-4859.02433287,0.000124,2]
[347239524,1735609851676,-1213.87805216,0.000124,2]
[347239525,1735609851685,-200.0,0.00012423,2]
[347239526,1735609851694,-586.51,0.00012427,2]
[347239527,1735609851703,-179.52658138,0.0001245,2]
[347239528,1735609851712,-495.402854,0.00012451,2]
[347239529,1735609851721,-495.402854,0.00012451,2]
[347239530,1735609851730,-369.525604,0.00012451,2]
[347239531,1735609851739,-369.525604,0.00012451,2]
[347239532,1735609851749,-541.129143,0.00012451,2]
[347239533,1735609851758,-541.129143,0.00012451,2]
[347239534,1735609851767,-408.554796,0.00012451,2]
[347239535,1735609851776,-408.554796,0.00012451,2]
[347239536,1735609851786,-10000.0,0.00012451,2]
[347239537,1735609851795,-10000.0,0.00012451,2]
[347239538,1735609851805,-10000.0,0.00012451,2]
[347239539,1735609851814,-10000.0,0.00012451,2]
[347239540,1735609851825,-10000.0,0.00012451,2]
[347239541,1735609851834,-10000.0,0.00012451,2]
[347239542,1735609851843,-151.0,0.00012451,2]
[347239543,1735609851854,-924.426765,0.00012451,2]
[347239544,1735609851864,-924.426765,0.00012451,2]
[347239545,1735609851873,-2013.0,0.00012451,2]
[347239546,1735609851882,-1269.28,0.00012451,2]
[347239547,1735609851891,-634.0,0.00012451,2]
[347239548,1735609851900,-150.27,0.00012451,2]
[347239549,1735609851909,-566.0,0.00012451,2]
[347239550,1735609851919,-1901.501,0.00012451,2]
[347239551,1735609851928,-819.0,0.00012451,2]
[347239552,1735609851938,-919.0,0.00012451,2]
[347239553,1735609851947,-1257.0,0.00012451,2]
[347239554,1735609851956,-3774.0,0.00012451,2]
[347239555,1735609851966,-552.455,0.00012451,2]
[347239556,1735609851974,-3720.0,0.00012451,2]
[347239557,1735609851983,-150.685,0.00012451,2]
[347239558,1735609851992,-3891.0,0.00012451,2]
[347239559,1735609852002,-1172.0,0.00012451,2]
[347239560,1735609852011,-9607.0,0.00012451,2]
[347239561,1735609852020,-150.0,0.00012451,2]
[347239562,1735609852029,-586.51,0.00012454,2]
[347239563,1735609852038,-200.0,0.00012463,2]
[347239564,1735609852047,-798.05,0.00012465,2]
[347239565,1735609852056,-200.0,0.00012467,2]
[347239566,1735609852066,-200.0,0.00012467,2]
[347239567,1735609852075,-801.22614951,0.0001247,2]
[347239568,1735609852086,-151.0,0.00012471,2]
[347239569,1735609852096,-249.518704,0.00012471,2]
[347239570,1735609852105,-249.518713,0.00012471,2]
[347239571,1735609852114,-179.921779,0.00012471,2]
[347239572,1735609852123,-179.921775,0.00012471,2]
[347239573,1735609852132,-6082.326774,0.00012471,2]
[347239574,1735609852141,-151.0,0.00012471,2]
[347239575,1735609852150,-8919.3972793,0.00012471,2]
[347239576,1735609852159,-629.791836,0.00012471,2]
[347239577,1735609852168,-629.791836,0.00012471,2]
[347239578,1735609852178,-246.9608835,0.00012471,2]
[347239579,1735609852187,-502.22625346,0.00012473,2]
[347239580,1735609852196,-200.0,0.00012473,2]
[347239581,1735609852204,-166816.39116235,0.00012477,2]
[347239582,1735609852247,-382.82101826,0.00012477,2]
[347239583,1735609852258,-5110.70886892,0.00012477,2]
[347239584,1735609853497,-2167.86609093,0.000124,2]
[347239585,1735609853506,-53113.87847025,0.00012477,2]
[347239586,1735609853564,-264.15776,0.00012477,2]
[347239587,1735609853576,-1834.75359098,0.00012477,2]
[347239588,1735609853587,-265.44889174,0.00012477,2]
[347239589,1735609853647,-1277.905,0.00012477,2]
[347239590,1735609857617,-432.00902886,0.00012329,2]
[347239591,1735609857665,-251.10073731,0.00012329,2]
[347239592,1735609859480,454.54,0.00010137,2]
[347239593,1735610304760,714.87,9.35e-05,2]
[347239594,1735610488385,-250.0,0.00011256,2]
[347239595,1735610488413,-948.04,0.00011256,2]
[347239596,1735610488439,-400.0,0.00011256,2]
[347239597,1735610532803,250.0,0.0001126,2]
[347239598,1735610547771,-1000.0,0.00011316,2]
[347239599,1735610547796,-164.69,0.00011427,2]
[347239600,1735610547822,-714.87,0.00011614,2]
[347239601,1735610547851,-494.61,0.00011669,2]
[347239602,1735610547876,-9112.0,0.00011748,2]
[347239603,1735610547903,-500.07,0.00011748,2]
[347239604,1735610547929,-151.52,0.00011816,2]
[347239605,1735610547954,-151.48,0.00011816,2]
[347239606,1735610547979,-150.61,0.00011816,2]
[347239607,1735610548006,-473.838,0.0001186,2]
[347239608,1735610548032,-500.23,0.00011862,2]
[347239609,1735610548058,-500.83,0.00011864,2]
[347239610,1735610548086,-495.8,0.00011869,2]
[347239611,1735610548112,-502.76,0.00011877,2]
[347239612,1735610548138,-508.92,0.00011892,2]